[Event "*** Titled Tuesday Blitz"]
[Site "Chess.com"]
[Date "2019.11.05"]
[Round "7"]
[White "riconaipe"]
[Black "Gabrielian_Artur"]
[Result "0-1"]
[WhiteElo "2613"]
[BlackElo "2822"]
[TimeControl "180+2"]
[EndTime "14:36:00 PST"]
[Termination "Gabrielian_Artur won by resignation"]

1. d4 {[%clk 0:03:01.9]} 1... Nf6 {[%clk 0:03:00.5]} 2. c4 {[%clk 0:03:02.6]}
2... c5 {[%clk 0:03:01.7]} 3. d5 {[%clk 0:03:03.2]} 3... e6 {[%clk 0:03:03.2]}
4. Nc3 {[%clk 0:03:03.9]} 4... exd5 {[%clk 0:03:04.7]} 5. cxd5 {[%clk
0:03:05.8]} 5... d6 {[%clk 0:03:06.2]} 6. e4 {[%clk 0:03:07]} 6... g6 {[%clk
0:03:07.7]} 7. Nge2 {[%clk 0:03:08.3]} 7... Bg7 {[%clk 0:03:08.5]} 8. Ng3 {[%clk
0:03:09.7]} 8... h5 {[%clk 0:03:08.6]} 9. Be2 {[%clk 0:03:09.6]} 9... a6 {[%clk
0:03:05.9]} 10. a4 {[%clk 0:03:10.2]} 10... Nbd7 {[%clk 0:03:06.9]} 11. O-O
{[%clk 0:03:09.3]} 11... h4 {[%clk 0:03:07.9]} 12. Nh1 {[%clk 0:03:10.4]} 12...
h3 {[%clk 0:03:03.6]} 13. g3 {[%clk 0:03:10.1]} 13... Qe7 {[%clk 0:03:02.8]} 14.
f3 {[%clk 0:03:11]} 14... O-O {[%clk 0:02:57.9]} 15. Nf2 {[%clk 0:03:12]} 15...
Ne5 {[%clk 0:02:49.8]} 16. Bg5 {[%clk 0:03:05.9]} 16... Qc7 {[%clk 0:02:47.6]}
17. f4 {[%clk 0:02:58.8]} 17... Nh7 {[%clk 0:02:46.7]} 18. Bh4 {[%clk
0:02:52.8]} 18... g5 {[%clk 0:02:47.7]} 19. fxg5 {[%clk 0:02:46.5]} 19... c4
{[%clk 0:02:46.1]} 20. Ng4 {[%clk 0:02:37.3]} 20... Bxg4 {[%clk 0:02:43.7]} 21.
Bxg4 {[%clk 0:02:37.8]} 21... b5 {[%clk 0:02:44.9]} 22. axb5 {[%clk 0:02:37.3]}
22... axb5 {[%clk 0:02:45.7]} 23. Rxa8 {[%clk 0:02:32]} 23... Rxa8 {[%clk
0:02:44.7]} 24. Bxh3 {[%clk 0:02:20.8]} 24... b4 {[%clk 0:02:45.7]} 25. Ne2
{[%clk 0:02:16.2]} 25... c3 {[%clk 0:02:40.7]} 26. bxc3 {[%clk 0:02:15.7]} 26...
bxc3 {[%clk 0:02:41.8]} 27. Qc2 {[%clk 0:02:04.8]} 27... Qc4 {[%clk 0:02:42.6]}
28. g6 {[%clk 0:01:24.4]} 28... Nxg6 {[%clk 0:02:40.3]} 29. Nf4 {[%clk
0:01:14.2]} 29... Nxh4 {[%clk 0:02:30]} 30. gxh4 {[%clk 0:01:12.2]} 30... Ra2
{[%clk 0:02:29.9]} 31. Qd3 {[%clk 0:01:11.1]} 31... Bd4+ {[%clk 0:02:27.5]} 32.
Kh1 {[%clk 0:01:09.5]} 32... Qxd3 {[%clk 0:02:26.9]} 33. Nxd3 {[%clk 0:01:11.4]}
33... Rd2 {[%clk 0:02:17.2]} 34. Nc1 {[%clk 0:01:09.1]} 34... Be5 {[%clk
0:02:11.4]} 35. Bg2 {[%clk 0:01:09.4]} 35... Nf6 {[%clk 0:02:09.8]} 36. Kg1
{[%clk 0:00:39.9]} 36... Ng4 {[%clk 0:02:07.3]} 37. Nb3 {[%clk 0:00:37.7]} 37...
Rb2 {[%clk 0:02:06.3]} 38. Na5 {[%clk 0:00:38.3]} 38... Bd4+ {[%clk 0:02:02.7]}
39. Kh1 {[%clk 0:00:39.1]} 39... Nf2+ {[%clk 0:02:03.8]} 40. Kg1 {[%clk
0:00:39.3]} 40... Nxe4+ {[%clk 0:02:01.6]} 41. Kh1 {[%clk 0:00:40.1]} 41... Nf2+
{[%clk 0:02:02.6]} 42. Kg1 {[%clk 0:00:41.4]} 42... c2 {[%clk 0:02:03.6]} 43.
Nc4 {[%clk 0:00:41.8]} 43... Rb1 {[%clk 0:01:59.3]} 0-1

[Event "*** Titled Tuesday Blitz"]
[Site "Chess.com"]
[Date "2019.11.05"]
[Round "7"]
[White "hypert"]
[Black "Ceejay271"]
[Result "1/2-1/2"]
[WhiteElo "2467"]
[BlackElo "2373"]
[TimeControl "180+2"]
[EndTime "14:36:04 PST"]
[Termination "Game drawn by agreement"]

1. e4 {[%clk 0:03:01.9]} 1... c5 {[%clk 0:03:00.6]} 2. Nf3 {[%clk 0:03:00.7]}
2... d6 {[%clk 0:03:01.7]} 3. d4 {[%clk 0:03:01.4]} 3... cxd4 {[%clk 0:03:03.6]}
4. Nxd4 {[%clk 0:03:02.7]} 4... Nf6 {[%clk 0:03:04.9]} 5. Nc3 {[%clk 0:03:04.4]}
5... Nc6 {[%clk 0:03:06.3]} 6. Bg5 {[%clk 0:03:04.8]} 6... Bd7 {[%clk
0:03:06.6]} 7. Bxf6 {[%clk 0:03:04.8]} 7... gxf6 {[%clk 0:03:07]} 8. f4 {[%clk
0:03:06]} 8... Nxd4 {[%clk 0:02:55.7]} 9. Qxd4 {[%clk 0:03:06.5]} 9... Qa5
{[%clk 0:02:57.2]} 10. O-O-O {[%clk 0:03:04.9]} 10... Rc8 {[%clk 0:02:57.1]} 11.
Bc4 {[%clk 0:03:00.8]} 11... Qc5 {[%clk 0:02:57]} 12. Bb3 {[%clk 0:02:52.7]}
12... Qxd4 {[%clk 0:02:56.9]} 13. Rxd4 {[%clk 0:02:54.6]} 13... Bg7 {[%clk
0:02:55.7]} 14. f5 {[%clk 0:02:55.1]} 14... h5 {[%clk 0:02:56]} 15. Rf1 {[%clk
0:02:53.5]} 15... h4 {[%clk 0:02:54.8]} 16. Rd3 {[%clk 0:02:52.7]} 16... Bh6+
{[%clk 0:02:54.8]} 17. Kb1 {[%clk 0:02:50.7]} 17... Rg8 {[%clk 0:02:52.3]} 18.
Rf2 {[%clk 0:02:45.5]} 18... b5 {[%clk 0:02:38]} 19. Nd5 {[%clk 0:02:37.1]}
19... a5 {[%clk 0:02:34.8]} 20. Nb6 {[%clk 0:02:32.4]} 20... Rc7 {[%clk
0:02:24.4]} 21. Nxd7 {[%clk 0:02:28.2]} 21... Rxd7 {[%clk 0:02:25]} 22. c4
{[%clk 0:02:19.8]} 22... Rc7 {[%clk 0:02:19.2]} 23. Rc3 {[%clk 0:02:16.6]} 23...
b4 {[%clk 0:02:18.9]} 24. Rh3 {[%clk 0:02:11.9]} 24... Bg5 {[%clk 0:02:12.3]}
25. Ba4+ {[%clk 0:02:12.3]} 25... Kf8 {[%clk 0:02:10.3]} 26. Rc2 {[%clk
0:02:13.5]} 26... Rc5 {[%clk 0:02:10.1]} 27. a3 {[%clk 0:02:09.6]} 27... Bf4
{[%clk 0:02:06.5]} 28. Rxh4 {[%clk 0:02:05.5]} 28... Be5 {[%clk 0:02:06.7]} 29.
Bb5 {[%clk 0:01:51.5]} 29... b3 {[%clk 0:01:59.2]} 30. Re2 {[%clk 0:01:48]}
30... e6 {[%clk 0:01:50.4]} 31. fxe6 {[%clk 0:01:45.3]} 31... fxe6 {[%clk
0:01:52.3]} 32. Rh3 {[%clk 0:01:46.5]} 32... Kf7 {[%clk 0:01:46.6]} 33. Rxb3
{[%clk 0:01:39.3]} 33... Bxh2 {[%clk 0:01:43]} 34. Rh3 {[%clk 0:01:40.3]} 34...
Be5 {[%clk 0:01:43.1]} 35. Rh7+ {[%clk 0:01:35.3]} 35... Rg7 {[%clk 0:01:42.2]}
36. Rxg7+ {[%clk 0:01:26.5]} 36... Kxg7 {[%clk 0:01:42.6]} 37. b4 {[%clk
0:01:27.1]} 37... axb4 {[%clk 0:01:37.2]} 38. axb4 {[%clk 0:01:29]} 38... Rc7
{[%clk 0:01:36.1]} 39. Ka2 {[%clk 0:01:30.5]} 39... Ra7+ {[%clk 0:01:31.1]} 40.
Kb3 {[%clk 0:01:31.5]} 40... Ra1 {[%clk 0:01:30.4]} 41. Bd7 {[%clk 0:01:30]}
41... Rb1+ {[%clk 0:01:27.5]} 42. Ka3 {[%clk 0:01:25.5]} 42... Bc3 {[%clk
0:01:26.9]} 43. b5 {[%clk 0:01:21.6]} 43... Kf7 {[%clk 0:01:26.1]} 44. Rc2
{[%clk 0:01:18.5]} 44... Bd4 {[%clk 0:01:26]} 45. g4 {[%clk 0:01:16.3]} 45...
Bc5+ {[%clk 0:01:20]} 46. Ka2 {[%clk 0:01:17]} 1/2-1/2

[Event "*** Titled Tuesday Blitz"]
[Site "Chess.com"]
[Date "2019.11.05"]
[Round "7"]
[White "yjjga"]
[Black "TheFireChess"]
[Result "0-1"]
[WhiteElo "2031"]
[BlackElo "2511"]
[TimeControl "180+2"]
[EndTime "14:36:20 PST"]
[Termination "TheFireChess won on time"]

1. d4 {[%clk 0:01:28.4]} 1... d6 {[%clk 0:02:57.9]} 2. c4 {[%clk 0:01:23.7]}
2... f5 {[%clk 0:02:59.3]} 3. Nc3 {[%clk 0:01:24.6]} 3... Nf6 {[%clk 0:03:00.7]}
4. g3 {[%clk 0:01:25.8]} 4... g6 {[%clk 0:03:02]} 5. Bg2 {[%clk 0:01:27.5]} 5...
c6 {[%clk 0:03:03.6]} 6. Nf3 {[%clk 0:01:28.8]} 6... Bg7 {[%clk 0:03:05.2]} 7.
O-O {[%clk 0:01:30.4]} 7... O-O {[%clk 0:03:06.8]} 8. d5 {[%clk 0:01:32.2]} 8...
e5 {[%clk 0:03:08.1]} 9. Bg5 {[%clk 0:01:04.5]} 9... c5 {[%clk 0:03:03.5]} 10.
Qd2 {[%clk 0:00:48.7]} 10... e4 {[%clk 0:03:01.4]} 11. Ne1 {[%clk 0:00:44.3]}
11... Nbd7 {[%clk 0:03:01.7]} 12. Nc2 {[%clk 0:00:45.3]} 12... Ne5 {[%clk
0:03:02.2]} 13. b3 {[%clk 0:00:42.1]} 13... a6 {[%clk 0:02:53.4]} 14. a4 {[%clk
0:00:34.4]} 14... a5 {[%clk 0:02:49.2]} 15. Rae1 {[%clk 0:00:24.4]} 15... Nf7
{[%clk 0:02:48]} 16. Be3 {[%clk 0:00:18.5]} 16... Ng4 {[%clk 0:02:43.8]} 17. f3
{[%clk 0:00:20.1]} 17... Nxe3 {[%clk 0:02:43.2]} 18. Nxe3 {[%clk 0:00:22]} 18...
exf3 {[%clk 0:02:43.8]} 19. exf3 {[%clk 0:00:23.6]} 19... Bd7 {[%clk 0:02:41]}
20. Re2 {[%clk 0:00:18.8]} 20... b6 {[%clk 0:02:41.5]} 21. Rfe1 {[%clk 0:00:20]}
21... Qf6 {[%clk 0:02:43.1]} 22. Ncd1 {[%clk 0:00:19.6]} 22... Rae8 {[%clk
0:02:43.7]} 23. Nc2 {[%clk 0:00:19.9]} 23... Ne5 {[%clk 0:02:37.9]} 24. h3
{[%clk 0:00:17.1]} 24... f4 {[%clk 0:02:33.9]} 25. g4 {[%clk 0:00:18.4]} 25...
h5 {[%clk 0:02:33.5]} 26. Nf2 {[%clk 0:00:19.9]} 26... hxg4 {[%clk 0:02:24]} 27.
hxg4 {[%clk 0:00:20.9]} 27... g5 {[%clk 0:02:25.4]} 28. Ne4 {[%clk 0:00:22]}
28... Qh6 {[%clk 0:02:26.9]} 29. Bh1 {[%clk 0:00:21.9]} 29... Qg6 {[%clk
0:02:01.6]} 30. Rh2 {[%clk 0:00:21.6]} 30... Nf7 {[%clk 0:01:40.5]} 31. Rh5
{[%clk 0:00:20.6]} 31... Re5 {[%clk 0:01:41]} 32. Bg2 {[%clk 0:00:18.7]} 32...
Rfe8 {[%clk 0:01:42.4]} 33. Kh2 {[%clk 0:00:07.9]} 33... Nh6 {[%clk 0:01:36.7]}
34. Qd1 {[%clk 0:00:02.6]} 34... Rxe4 {[%clk 0:01:35.8]} 35. fxe4 {[%clk
0:00:03.1]} 35... Nxg4+ {[%clk 0:01:35.8]} 0-1

[Event "*** Titled Tuesday Blitz"]
[Site "Chess.com"]
[Date "2019.11.05"]
[Round "7"]
[White "NoGalloNoParty"]
[Black "chanchakman"]
[Result "1-0"]
[WhiteElo "2297"]
[BlackElo "2150"]
[TimeControl "180+2"]
[EndTime "14:36:25 PST"]
[Termination "NoGalloNoParty won on time"]

1. d4 {[%clk 0:03:01.9]} 1... Nf6 {[%clk 0:03:00.4]} 2. Nf3 {[%clk 0:03:02.1]}
2... g6 {[%clk 0:03:01.2]} 3. c4 {[%clk 0:03:02.7]} 3... Bg7 {[%clk 0:03:02.3]}
4. g3 {[%clk 0:03:03.7]} 4... d6 {[%clk 0:03:03.8]} 5. Bg2 {[%clk 0:03:04.2]}
5... O-O {[%clk 0:03:05.7]} 6. Nc3 {[%clk 0:03:04.9]} 6... c6 {[%clk 0:03:06.8]}
7. O-O {[%clk 0:03:05.9]} 7... Qc7 {[%clk 0:03:08.2]} 8. e4 {[%clk 0:03:04.9]}
8... e5 {[%clk 0:03:09]} 9. h3 {[%clk 0:03:05.9]} 9... h6 {[%clk 0:03:02.4]} 10.
Be3 {[%clk 0:03:05.7]} 10... Be6 {[%clk 0:02:59.1]} 11. b3 {[%clk 0:03:03.9]}
11... Nh5 {[%clk 0:02:41.8]} 12. Qd2 {[%clk 0:02:56.6]} 12... Kh7 {[%clk
0:02:41.1]} 13. Rac1 {[%clk 0:02:46.5]} 13... f5 {[%clk 0:02:33]} 14. exf5
{[%clk 0:02:21.1]} 14... gxf5 {[%clk 0:02:32.1]} 15. dxe5 {[%clk 0:02:20.7]}
15... dxe5 {[%clk 0:02:32.9]} 16. Rfd1 {[%clk 0:02:11.1]} 16... Na6 {[%clk
0:02:19.9]} 17. Qc2 {[%clk 0:01:46.2]} 17... Kg8 {[%clk 0:02:04.8]} 18. Nh4
{[%clk 0:01:33.7]} 18... f4 {[%clk 0:02:01.1]} 19. Bd2 {[%clk 0:00:54.1]} 19...
fxg3 {[%clk 0:02:00.7]} 20. fxg3 {[%clk 0:00:53.6]} 20... Nxg3 {[%clk 0:01:51]}
21. Qg6 {[%clk 0:00:52.2]} 21... Qb6+ {[%clk 0:00:27]} 22. Kh2 {[%clk
0:00:49.2]} 22... Bxh3 {[%clk 0:00:20.7]} 23. Bxh6 {[%clk 0:00:36.3]} 1-0

[Event "*** Titled Tuesday Blitz"]
[Site "Chess.com"]
[Date "2019.11.05"]
[Round "7"]
[White "Crazy_girl99"]
[Black "MFBerna"]
[Result "1-0"]
[WhiteElo "2534"]
[BlackElo "2316"]
[TimeControl "180+2"]
[EndTime "14:36:27 PST"]
[Termination "Crazy_girl99 won by resignation"]

1. e4 {[%clk 0:03:01.9]} 1... c6 {[%clk 0:02:57.7]} 2. d4 {[%clk 0:03:02.4]}
2... d5 {[%clk 0:02:59.6]} 3. e5 {[%clk 0:03:03.1]} 3... c5 {[%clk 0:03:00.7]}
4. dxc5 {[%clk 0:03:02.5]} 4... e6 {[%clk 0:02:59.9]} 5. Be3 {[%clk 0:02:52.5]}
5... Nd7 {[%clk 0:02:58.8]} 6. Nf3 {[%clk 0:02:52.5]} 6... Bxc5 {[%clk
0:02:58.3]} 7. Bxc5 {[%clk 0:02:51]} 7... Nxc5 {[%clk 0:03:00.2]} 8. Qd4 {[%clk
0:02:51.4]} 8... Qb6 {[%clk 0:02:52.9]} 9. Nc3 {[%clk 0:02:43.8]} 9... Ne7
{[%clk 0:02:39.4]} 10. Be2 {[%clk 0:02:22.5]} 10... Nf5 {[%clk 0:02:38.1]} 11.
Qd2 {[%clk 0:02:17.4]} 11... O-O {[%clk 0:02:21.9]} 12. O-O {[%clk 0:02:18.2]}
12... Ne4 {[%clk 0:02:14.4]} 13. Nxe4 {[%clk 0:02:16.8]} 13... dxe4 {[%clk
0:02:16.3]} 14. Ng5 {[%clk 0:02:18.2]} 14... e3 {[%clk 0:02:09.3]} 15. fxe3
{[%clk 0:02:18]} 15... Qxb2 {[%clk 0:02:01.7]} 16. g4 {[%clk 0:02:02.3]} 16...
Nh6 {[%clk 0:01:43.5]} 17. Qd3 {[%clk 0:01:55.7]} 17... g6 {[%clk 0:01:41.8]}
18. Qe4 {[%clk 0:01:43.4]} 18... Bd7 {[%clk 0:01:37.9]} 19. Rab1 {[%clk
0:01:40.8]} 19... Qc3 {[%clk 0:01:35]} 20. Rb3 {[%clk 0:01:36.7]} 20... Qc5
{[%clk 0:01:34.3]} 21. Qf4 {[%clk 0:01:31.3]} 21... Bc6 {[%clk 0:01:16.4]} 22.
Bf3 {[%clk 0:01:31.4]} 22... Rad8 {[%clk 0:00:22]} 23. Bxc6 {[%clk 0:01:30.7]}
23... Qxc6 {[%clk 0:00:22.5]} 24. Ne4 {[%clk 0:01:31.2]} 24... Kg7 {[%clk
0:00:19.6]} 25. Rc3 {[%clk 0:01:31.5]} 25... Qd5 {[%clk 0:00:15.4]} 26. Rf2
{[%clk 0:01:29.4]} 26... Ng8 {[%clk 0:00:13.5]} 27. g5 {[%clk 0:01:27.3]} 27...
Qd1+ {[%clk 0:00:12.8]} 28. Kg2 {[%clk 0:01:27.9]} 28... h5 {[%clk 0:00:11.3]}
29. Rc7 {[%clk 0:01:19.1]} 29... Qg4+ {[%clk 0:00:10.5]} 30. Qxg4 {[%clk
0:01:18.9]} 30... hxg4 {[%clk 0:00:12.4]} 31. Rxb7 {[%clk 0:01:19.2]} 31... Rc8
{[%clk 0:00:09.1]} 32. Rxa7 {[%clk 0:01:20.3]} 32... Rc4 {[%clk 0:00:09.1]} 33.
Nd6 {[%clk 0:01:21.3]} 33... Rc5 {[%clk 0:00:07.4]} 34. Nxf7 {[%clk 0:01:22]}
34... Rfc8 {[%clk 0:00:02.4]} 35. Nd6+ {[%clk 0:01:22.8]} 1-0

[Event "*** Titled Tuesday Blitz"]
[Site "Chess.com"]
[Date "2019.11.05"]
[Round "7"]
[White "FearlessKing64"]
[Black "maxip32"]
[Result "0-1"]
[WhiteElo "2313"]
[BlackElo "2489"]
[TimeControl "180+2"]
[EndTime "14:36:27 PST"]
[Termination "maxip32 won by resignation"]

1. e4 {[%clk 0:03:01.9]} 1... c5 {[%clk 0:02:59]} 2. Nf3 {[%clk 0:03:02.1]} 2...
d6 {[%clk 0:02:59.8]} 3. d4 {[%clk 0:03:02.6]} 3... cxd4 {[%clk 0:03:01.7]} 4.
Nxd4 {[%clk 0:03:04]} 4... Nf6 {[%clk 0:03:03.3]} 5. f3 {[%clk 0:03:05.4]} 5...
a6 {[%clk 0:03:05.2]} 6. c4 {[%clk 0:03:00.5]} 6... g6 {[%clk 0:03:06.1]} 7. Be3
{[%clk 0:03:01]} 7... Bg7 {[%clk 0:03:08]} 8. Qd2 {[%clk 0:03:01]} 8... O-O
{[%clk 0:03:09.9]} 9. Nc3 {[%clk 0:03:01.9]} 9... Nc6 {[%clk 0:03:10.8]} 10. Rc1
{[%clk 0:03:02]} 10... Rb8 {[%clk 0:03:08.2]} 11. Be2 {[%clk 0:03:00.6]} 11...
Nd7 {[%clk 0:03:08.6]} 12. O-O {[%clk 0:02:55.1]} 12... Nc5 {[%clk 0:03:09.5]}
13. Rfd1 {[%clk 0:02:45.1]} 13... Nxd4 {[%clk 0:03:07.5]} 14. Bxd4 {[%clk
0:02:45]} 14... Bxd4+ {[%clk 0:03:09.4]} 15. Qxd4 {[%clk 0:02:46.2]} 15... Ne6
{[%clk 0:03:07.8]} 16. Qd2 {[%clk 0:02:41.9]} 16... Re8 {[%clk 0:02:52.4]} 17.
b3 {[%clk 0:02:39.6]} 17... Qa5 {[%clk 0:02:52.6]} 18. Kh1 {[%clk 0:02:34.5]}
18... Qe5 {[%clk 0:02:49.7]} 19. Nd5 {[%clk 0:02:14.9]} 19... Nc5 {[%clk
0:02:37.3]} 20. Qh6 {[%clk 0:01:57.8]} 20... Be6 {[%clk 0:02:28.2]} 21. Nc3
{[%clk 0:01:22.9]} 21... Qg7 {[%clk 0:02:16.7]} 22. Qh4 {[%clk 0:01:14.3]} 22...
Bd7 {[%clk 0:02:14.2]} 23. Nd5 {[%clk 0:01:10]} 23... g5 {[%clk 0:02:10.7]} 24.
Qg3 {[%clk 0:01:07.1]} 24... h6 {[%clk 0:02:05.7]} 25. h4 {[%clk 0:01:05.2]}
25... Ne6 {[%clk 0:02:06.2]} 26. hxg5 {[%clk 0:00:58.2]} 26... hxg5 {[%clk
0:02:08.1]} 27. Kg1 {[%clk 0:00:56.4]} 27... Nd4 {[%clk 0:02:08.1]} 28. Kf2
{[%clk 0:00:49.3]} 28... e5 {[%clk 0:01:56.4]} 29. Rh1 {[%clk 0:00:44.2]} 29...
Be6 {[%clk 0:01:56.3]} 30. Rh5 {[%clk 0:00:43.5]} 30... f6 {[%clk 0:01:52.7]}
31. Nxf6+ {[%clk 0:00:44]} 31... Qxf6 {[%clk 0:01:53.2]} 32. Rxg5+ {[%clk
0:00:45.5]} 32... Kf7 {[%clk 0:01:54.2]} 33. Rh1 {[%clk 0:00:36.2]} 33... Rh8
{[%clk 0:01:55]} 34. Rgh5 {[%clk 0:00:36.4]} 34... Rxh5 {[%clk 0:01:43.4]} 35.
Rxh5 {[%clk 0:00:38.3]} 35... Rg8 {[%clk 0:01:42.1]} 36. Rh7+ {[%clk 0:00:31.6]}
36... Rg7 {[%clk 0:01:38.1]} 37. Qh2 {[%clk 0:00:33.1]} 37... Qg6 {[%clk
0:01:37.2]} 38. Rh6 {[%clk 0:00:22.8]} 38... Qg5 {[%clk 0:01:33.8]} 39. Rh5
{[%clk 0:00:20.2]} 39... Qd2 {[%clk 0:01:33.4]} 0-1

[Event "*** Titled Tuesday Blitz"]
[Site "Chess.com"]
[Date "2019.11.05"]
[Round "7"]
[White "justantan"]
[Black "ChessWarrior7197"]
[Result "0-1"]
[WhiteElo "2858"]
[BlackElo "2960"]
[TimeControl "180+2"]
[EndTime "14:36:28 PST"]
[Termination "ChessWarrior7197 won by resignation"]

1. e4 {[%clk 0:03:01.9]} 1... c5 {[%clk 0:03:00.8]} 2. Nf3 {[%clk 0:03:02.9]}
2... d6 {[%clk 0:03:01.9]} 3. d4 {[%clk 0:03:03.9]} 3... cxd4 {[%clk 0:03:03.6]}
4. Nxd4 {[%clk 0:03:05.4]} 4... Nf6 {[%clk 0:03:05.1]} 5. Nc3 {[%clk 0:03:06.6]}
5... a6 {[%clk 0:03:06.3]} 6. h3 {[%clk 0:03:07.4]} 6... e5 {[%clk 0:03:06.5]}
7. Nde2 {[%clk 0:03:07.8]} 7... b5 {[%clk 0:03:06.9]} 8. Ng3 {[%clk 0:03:08.4]}
8... Qc7 {[%clk 0:03:05.7]} 9. Bd3 {[%clk 0:03:04.9]} 9... Nbd7 {[%clk
0:03:05.7]} 10. O-O {[%clk 0:03:06]} 10... Bb7 {[%clk 0:03:06.4]} 11. Re1 {[%clk
0:02:56.8]} 11... g6 {[%clk 0:03:05.8]} 12. Bd2 {[%clk 0:02:46.8]} 12... Bg7
{[%clk 0:03:01.8]} 13. a4 {[%clk 0:02:47.7]} 13... b4 {[%clk 0:02:55.2]} 14. Nd5
{[%clk 0:02:46.6]} 14... Nxd5 {[%clk 0:02:53.9]} 15. exd5 {[%clk 0:02:47.5]}
15... O-O {[%clk 0:02:52.2]} 16. Bxb4 {[%clk 0:02:47.1]} 16... f5 {[%clk
0:02:53.2]} 17. Bf1 {[%clk 0:02:42.5]} 17... e4 {[%clk 0:02:53.2]} 18. c3 {[%clk
0:02:42]} 18... a5 {[%clk 0:02:39.2]} 19. Ba3 {[%clk 0:02:43]} 19... Ne5 {[%clk
0:02:39.4]} 20. Bb5 {[%clk 0:02:40.4]} 20... Rad8 {[%clk 0:02:35.4]} 21. Qb3
{[%clk 0:02:30.8]} 21... Kh8 {[%clk 0:02:31.3]} 22. Ne2 {[%clk 0:02:26]} 22...
Qf7 {[%clk 0:02:27.4]} 23. Nf4 {[%clk 0:02:26.2]} 23... Bc8 {[%clk 0:02:18.6]}
24. Rad1 {[%clk 0:02:24]} 24... Qe7 {[%clk 0:02:10.4]} 25. Ne6 {[%clk
0:02:13.7]} 25... Bxe6 {[%clk 0:02:10.2]} 26. dxe6 {[%clk 0:02:14.8]} 26... Rf6
{[%clk 0:01:56]} 27. f4 {[%clk 0:02:14.1]} 27... Rxe6 {[%clk 0:01:41.2]} 28.
fxe5 {[%clk 0:02:14]} 28... Bxe5 {[%clk 0:01:40.5]} 29. Qd5 {[%clk 0:02:02.4]}
29... Rf8 {[%clk 0:01:29.1]} 30. c4 {[%clk 0:01:53.9]} 30... f4 {[%clk
0:01:25.7]} 31. Rxe4 {[%clk 0:01:49.5]} 31... f3 {[%clk 0:01:26.5]} 32. Rf1
{[%clk 0:01:43.1]} 32... Qg5 {[%clk 0:01:15.6]} 33. Rg4 {[%clk 0:01:43.8]} 33...
Qe3+ {[%clk 0:01:13.1]} 34. Kh1 {[%clk 0:01:37.1]} 34... fxg2+ {[%clk
0:01:13.9]} 35. Qxg2 {[%clk 0:01:38.6]} 35... Rxf1+ {[%clk 0:01:14.9]} 36. Qxf1
{[%clk 0:01:39.5]} 36... Rf6 {[%clk 0:01:16.3]} 37. c5 {[%clk 0:00:50.1]} 37...
Rxf1+ {[%clk 0:01:16.6]} 38. Bxf1 {[%clk 0:00:50.8]} 38... Qf2 {[%clk
0:01:17.8]} 0-1

[Event "*** Titled Tuesday Blitz"]
[Site "Chess.com"]
[Date "2019.11.05"]
[Round "7"]
[White "Galileo22"]
[Black "timator"]
[Result "0-1"]
[WhiteElo "2418"]
[BlackElo "2664"]
[TimeControl "180+2"]
[EndTime "14:36:36 PST"]
[Termination "timator won on time"]

1. Nf3 {[%clk 0:02:58.9]} 1... Nf6 {[%clk 0:03:00.7]} 2. d4 {[%clk 0:02:59.7]}
2... e6 {[%clk 0:03:02.6]} 3. c4 {[%clk 0:02:59.3]} 3... b6 {[%clk 0:03:03.9]}
4. g3 {[%clk 0:02:56.9]} 4... Ba6 {[%clk 0:03:04.8]} 5. Qc2 {[%clk 0:02:55.5]}
5... Bb4+ {[%clk 0:03:03.1]} 6. Bd2 {[%clk 0:02:53.1]} 6... Be7 {[%clk
0:03:04.6]} 7. Bg2 {[%clk 0:02:53.3]} 7... c6 {[%clk 0:03:05.6]} 8. c5 {[%clk
0:02:24.7]} 8... O-O {[%clk 0:03:02.6]} 9. h4 {[%clk 0:01:55.9]} 9... Nd5 {[%clk
0:02:42.6]} 10. e4 {[%clk 0:01:42.4]} 10... Nf6 {[%clk 0:02:40.4]} 11. Nc3
{[%clk 0:01:02.8]} 11... bxc5 {[%clk 0:02:38.7]} 12. e5 {[%clk 0:00:37.3]} 12...
Nd5 {[%clk 0:02:33]} 13. dxc5 {[%clk 0:00:31.1]} 13... Nb4 {[%clk 0:02:22.6]}
14. Qb1 {[%clk 0:00:25.1]} 14... Nd3+ {[%clk 0:02:03.4]} 15. Kf1 {[%clk
0:00:18.2]} 15... Nxe5+ {[%clk 0:02:03.9]} 16. Kg1 {[%clk 0:00:17.8]} 16...
Nxf3+ {[%clk 0:02:04.3]} 17. Bxf3 {[%clk 0:00:19.4]} 17... Bxc5 {[%clk
0:02:05.2]} 18. Ne4 {[%clk 0:00:19.2]} 18... Be7 {[%clk 0:02:06.5]} 19. Ng5
{[%clk 0:00:18.3]} 19... f5 {[%clk 0:02:07.8]} 20. Qc2 {[%clk 0:00:09.2]} 20...
h6 {[%clk 0:02:07.7]} 21. Nh3 {[%clk 0:00:10]} 21... e5 {[%clk 0:01:50.1]} 22.
Re1 {[%clk 0:00:09.6]} 22... e4 {[%clk 0:01:49.7]} 23. Bh5 {[%clk 0:00:10.3]}
23... d5 {[%clk 0:01:30.6]} 24. Nf4 {[%clk 0:00:10.4]} 24... Rf6 {[%clk
0:01:29.4]} 25. Bc3 {[%clk 0:00:10.1]} 25... d4 {[%clk 0:01:30.7]} 26. Qb3+
{[%clk 0:00:08.8]} 26... Kh7 {[%clk 0:01:27.9]} 27. Bd2 {[%clk 0:00:06.5]} 27...
Nd7 {[%clk 0:01:24.8]} 28. Ne6 {[%clk 0:00:06.4]} 28... Qg8 {[%clk 0:01:16.5]}
29. Ng5+ {[%clk 0:00:03.9]} 29... hxg5 {[%clk 0:01:07.4]} 30. hxg5 {[%clk
0:00:05.8]} 30... Qxb3 {[%clk 0:01:08.3]} 31. axb3 {[%clk 0:00:02.3]} 31... Rg6
{[%clk 0:00:59.8]} 0-1